[Event "French-ch U16-U18 2024"]
[Site "Agen"]
[Date "2024.04.15"]
[Round "2.10"]
[White "Boumrar, Ayrad"]
[Black "Arousstamian, Albert"]
[Result "1-0"]
[ECO "E04"]
[WhiteElo "2191"]
[BlackElo "1937"]
[Annotator "TA"]
[PlyCount "93"]
[EventDate "2024.04.14"]
[EventType "swiss"]
[EventCountry "FRA"]
[SourceTitle "playchess.com"]
[Source "ChessBase"]
[SourceQuality "1"]
[TimeControl "5400+30"]

{[%evp 14,93,0,-10,0,-12,1,-12,50,-33,68,48,91,92,88,90,91,100,103,66,68,64,64,66,61,57,63,57,60,64,72,62,71,65,69,70,47,40,68,45,95,99,147,155,137,71,157,160,154,168,164,164,191,191,247,255,247,225,337,318,425,398,1061,999,756,512,2473,4690,2813,1503,29944,29945,29954,29952,12848,12840,29953,29952,29941,12848,5575,4618]} 1. d4 {[%emt 0:00:02]} d5 {[%emt 0:07:06]} 2. c4 {[%emt 0:00:07]} e6 {[%emt 0:00:20]} 3. Nf3 {[%emt 0:00:05]} Nf6 {[%emt 0:01:05]} 4. g3 {[%emt 0:00:16]} dxc4 {[%emt 0:00:45]} 5. Bg2 {[%emt 0:00:11]} Nc6 {[%emt 0:00:57]} 6. O-O {[%emt 0:00:28]} Rb8 {[%emt 0:00:50]} 7. Nc3 {[%emt 0:00:40]} b5 {[%emt 0:00:47]} 8. Ne5 {[%emt 0:03:25]} Nxe5 {[%emt 0:00:25]} 9. dxe5 {[%emt 0:01:12]} Nd7 {[%emt 0:00:09][%cal Oc8b7]} 10. Qc2 {[%emt 0:01:35]} b4 {[%emt 0:33:48]} (10... Bb7 $11) 11. Na4 {[%emt 0:04:21]} (11. Ne4 $14) 11... b3 {[%emt 0:03:06]} (11... Nxe5 $15 12. Be3 Bd6) 12. Qc3 {[%emt 0:08:38]} ({Inferior is} 12. Qxc4 Rb4 13. Qc3 (13. Qc6 $2 Bb7 $17) 13... Rxa4 $17) 12... Bb4 {[%emt 0:03:18]} 13. Qxc4 {[%emt 0:02:10]} Nxe5 {[%emt 0:00:45]} 14. Qxb3 {[%emt 0:11:30] Strongly threatening a3.} Bd7 {[%emt 0:10:07][%cal Bc8d7,Bd7c6,Bc6g2][%mdl 32]} 15. Qc2 {[%emt 0:07:54]} O-O {[%emt 0:03:25]} 16. Bf4 {[%emt 0:06:34]} Bd6 {[%emt 0:04:11]} 17. Nc5 {[%emt 0:01:27] White is more active.} Bc6 {[%emt 0:08:48]} 18. Bxe5 {[%emt 0:09:20]} (18. Rfd1 {feels hotter.} Qe7 19. Bxe5 Bxg2 20. Kxg2 Bxc5 21. Rac1) 18... Bxg2 {[%emt 0:00:25]} 19. Bxd6 {[%emt 0:00:22]} (19. Nxe6 {simplifies} fxe6 20. Bxd6 cxd6 21. Kxg2 Qc8 22. Qxc8 Rfxc8 23. b3) 19... cxd6 {[%emt 0:00:33]} 20. Nxe6 {[%emt 0:02:47]} Qc8 {[%emt 0:09:11]} 21. Qxc8 {[%emt 0:01:17]} Rfxc8 {[%emt 0:00:20]} 22. Kxg2 {[%emt 0:00:04]} fxe6 $14 {[%emt 0:00:08][%mdl 4096] Endgame. KRR-KRR} 23. b3 {[%emt 0:00:05]} Rc2 {[%emt 0:00:09]} 24. e3 {[%emt 0:01:10]} Rbc8 {[%emt 0:01:23]} 25. a4 {[%emt 0:05:47]} a5 {[%emt 0:04:20]} 26. Rab1 {[%emt 0:01:20]} Rb8 {[%emt 0:05:55]} (26... Kf7 $14) 27. Rfc1 $16 {[%emt 0:03:01]} Rxc1 {[%emt 0:00:05]} (27... Ra2 $142) 28. Rxc1 {[%emt 0:00:05]} Rxb3 {[%emt 0:00:03] [#] KR-KR} 29. Rc6 {[%emt 0:00:05]} (29. Rc8+ $142 $1 Kf7 30. Ra8) 29... Rb4 {[%emt 0:01:39]} (29... Rd3 $142) 30. Rxd6 {[%emt 0:00:07]} e5 {[%emt 0:00:34] Repels Rd4} 31. Rd5 {[%emt 0:00:34][%csl LRa5,LRe5]} Rxa4 {[%emt 0:00:05]} 32. Rxe5 {[%emt 0:00:04]} Ra1 {[%emt 0:00:09]} 33. Re7 {[%emt 0:00:08]} a4 {[%emt 0:00:53]} (33... h5 $142 34. Kf3 Kf8) 34. Ra7 {[%emt 0:01:12]} a3 {[%emt 0:01:01]} 35. e4 {[%emt 0:02:00]} a2 {[%emt 0:00:35] [#]} (35... h5 $142 36. Kf3 Kh7) 36. Kf3 $1 $18 {[%emt 0:00:30]} h6 {[%emt 0:00:33]} 37. h4 {[%emt 0:00:19]} h5 $2 {[%emt 0:00:29]} (37... Kh7 38. Kf4 Rc1 39. Rxa2 Rc8) 38. Kf4 {[%emt 0:00:29]} Kh7 {[%emt 0:00:29]} 39. Kg5 {[%emt 0:00:45]} Re1 {[%emt 0:00:29]} (39... Rb1 $142) 40. Rxa2 {[%emt 0:00:04]} Rxe4 {[%emt 0:00:03]} 41. Kxh5 {[%emt 0:00:08] White threatens f4 and mate.} Rb4 {[%emt 0:00:33]} 42. f4 {[%emt 0:00:19]} Rb3 {[%emt 0:00:46]} 43. Kg4 {[%emt 0:00:45]} g6 {[%emt 0:00:22]} 44. Ra5 {[%emt 0:00:17] White wants to mate with Rg5.} Kh6 {[%emt 0:00:47]} 45. h5 {[%emt 0:00:13]} gxh5+ {[%emt 0:00:19]} 46. Rxh5+ {[%emt 0:00:05]} Kg6 {[%emt 0:00:08]} 47. Ra5 {[%emt 0:00:03] Weighted Error Value: White=0.17 (very precise) /Black=0.64.  Mistake:       	White=2     	Black=8      Inaccurate:     	White=1     	Black=3      OK:         	White=16    	Black=12     Best:        	White=3     	Black=2      Strong:       	White=1     	---} 1-0

[Event "French-ch U16-U18 2024"]
[Site "Agen"]
[Date "2024.04.15"]
[Round "2.11"]
[White "Boghossian, Lucie"]
[Black "Diez, Agathe"]
[Result "0-1"]
[ECO "C47"]
[WhiteElo "1764"]
[BlackElo "1954"]
[Annotator "NA RC"]
[PlyCount "56"]
[EventDate "2024.04.14"]
[EventType "swiss"]
[EventCountry "FRA"]
[SourceTitle "playchess.com"]
[Source "ChessBase"]
[SourceQuality "1"]
[TimeControl "5400+30"]

1. e4 {[%emt 0:00:08]} e5 {[%emt 0:00:11]} 2. Nf3 {[%emt 0:00:20]} Nc6 {[%emt 0:00:12]} 3. Nc3 {[%emt 0:00:32]} Nf6 {[%emt 0:00:19]} 4. d4 {[%emt 0:00:33]} exd4 {[%emt 0:00:55]} 5. Nd5 {[%emt 0:00:53]} Bb4+ {[%emt 0:14:43]} 6. Nxb4 {[%emt 0:04:47] C47: Scotch Four Knights and Four Knights with 4 g3.} Nxb4 {[%emt 0:00:17]} 7. e5 {[%emt 0:00:23]} Qe7 {[%emt 0:06:06]} 8. Be2 {[%emt 0:10:50]} Nfd5 {[%emt 0:03:28]} 9. c3 {[%emt 0:03:22]} Nc6 {[%emt 0:05:25]} 10. cxd4 {[%emt 0:02:12]} ({Much weaker is} 10. Nxd4 Qxe5 11. Nf3 Qf5 $11) 10... O-O {[%emt 0:06:14]} 11. O-O {[%emt 0:02:38]} d6 {[%emt 0:01:43]} 12. Bc4 {[%emt 0:10:26]} Nb6 {[%emt 0:03:25]} 13. Bb3 {[%emt 0:04:48]} Bg4 {[%emt 0:03:19]} 14. Be3 {[%emt 0:12:34]} (14. h3 $11 {keeps the balance.} Bxf3 15. exd6 (15. Qxf3 Nxd4 16. Qxb7 dxe5 $17)) 14... dxe5 {[%emt 0:04:49]} 15. Bg5 $2 {[%emt 0:11:23]} (15. Re1 $17) 15... Qxg5 {[%emt 0:05:57]} 16. Nxg5 {[%emt 0:03:06]} Bxd1 {[%emt 0:00:05]} 17. Raxd1 {[%emt 0:01:01]} exd4 {[%emt 0:02:28]} 18. Rd3 {[%emt 0:01:58]} Rad8 {[%emt 0:05:01]} 19. Rfd1 {[%emt 0:01:26]} Rd7 {[%emt 0:00:51]} 20. Nf3 {[%emt 0:02:03]} Rfd8 $19 {[%emt 0:00:35]} 21. a3 {[%emt 0:02:47]} Na5 {[%emt 0:05:13]} 22. Ba2 {[%emt 0:06:51]} c5 {[%emt 0:01:31]} 23. b4 {[%emt 0:01:38]} cxb4 {[%emt 0:00:48]} 24. Ne5 {[%emt 0:02:13]} Re7 {[%emt 0:02:05]} 25. Rxd4 {[%emt 0:03:14]} Rxd4 {[%emt 0:00:43]} 26. Rxd4 {[%emt 0:00:08]} Nc6 {[%emt 0:00:13]} 27. Bxf7+ {[%emt 0:06:18]} Rxf7 {[%emt 0:01:50]} 28. Nxf7 {[%emt 0:00:29]} Nxd4 {[%emt 0:00:04]} 0-1

[Event "French-ch U16-U18 2024"]
[Site "Agen"]
[Date "2024.04.15"]
[Round "2.12"]
[White "Yaghi, leen"]
[Black "Riss, Selenia"]
[Result "1/2-1/2"]
[ECO "D15"]
[WhiteElo "1941"]
[BlackElo "1763"]
[Annotator "RC"]
[PlyCount "144"]
[EventDate "2024.04.14"]
[EventType "swiss"]
[EventCountry "FRA"]
[SourceTitle "playchess.com"]
[Source "ChessBase"]
[SourceQuality "1"]
[TimeControl "5400+30"]

1. d4 {[%emt 0:00:13]} d5 {[%emt 0:00:04]} 2. c4 {[%emt 0:00:24]} c6 {[%emt 0:00:08]} 3. Nf3 {[%emt 0:00:23]} Nf6 {[%emt 0:00:06]} 4. Nc3 {[%emt 0:00:31]} a6 {[%emt 0:00:18]} 5. g3 {[%emt 0:04:59]} dxc4 {[%emt 0:01:22]} 6. a4 {[%emt 0:01:44]} e6 {[%emt 0:10:36]} 7. Bg2 {[%emt 0:08:18]} c5 {[%emt 0:03:19]} 8. dxc5 {[%emt 0:13:13]} Qxd1+ {[%emt 0:01:12]} 9. Nxd1 {[%emt 0:02:11]} Bd7 {[%emt 0:00:56]} 10. Ne5 {[%emt 0:06:09]} Nc6 {[%emt 0:00:14]} 11. Nxc4 {[%emt 0:01:16]} Bxc5 {[%emt 0:00:09]} 12. O-O {[%emt 0:03:01]} Ke7 {[%emt 0:11:19]} 13. Nc3 {[%emt 0:02:48]} Rhd8 {[%emt 0:07:58]} 14. Bg5 {[%emt 0:05:37]} h6 {[%emt 0:14:18]} 15. Ne4 {[%emt 0:06:29]} Bd4 {[%emt 0:04:05]} 16. Bf4 {[%emt 0:12:44]} e5 {[%emt 0:12:54]} 17. Nxf6 {[%emt 0:09:41]} Kxf6 {[%emt 0:00:26]} 18. Be3 {[%emt 0:04:25]} Be6 {[%emt 0:06:13]} 19. Rac1 {[%emt 0:04:23]} Rac8 {[%emt 0:04:20]} 20. Rfd1 {[%emt 0:05:57]} Bxc4 {[%emt 0:13:15]} 21. Rxc4 {[%emt 0:00:08]} Bxe3 {[%emt 0:03:59]} 22. Rxd8 {[%emt 0:00:07]} Rxd8 {[%emt 0:00:03]} 23. fxe3 {[%emt 0:04:55]} Rd6 {[%emt 0:02:04]} 24. b4 {[%emt 0:00:16]} Ke7 {[%emt 0:02:24]} 25. b5 {[%emt 0:01:31]} axb5 {[%emt 0:00:18]} 26. axb5 {[%emt 0:00:05]} Nd8 {[%emt 0:00:20]} 27. Rc7+ {[%emt 0:01:06]} Rd7 {[%emt 0:00:11]} 28. b6 {[%emt 0:00:57]} Kd6 {[%emt 0:00:14]} 29. Rc2 {[%emt 0:00:46]} f5 {[%emt 0:01:12]} 30. Bh3 {[%emt 0:00:19]} g6 {[%emt 0:00:29]} 31. e4 {[%emt 0:00:14]} Ne6 {[%emt 0:00:54]} 32. exf5 {[%emt 0:00:22]} gxf5 {[%emt 0:00:27]} 33. Bxf5 {[%emt 0:00:45]} Nd4 {[%emt 0:00:37]} 34. Rd2 {[%emt 0:00:01]} Rf7 {[%emt 0:00:23]} 35. Bg6 {[%emt 0:01:27]} Rf6 {[%emt 0:00:06]} 36. Be4 {[%emt 0:00:26]} Kc5 {[%emt 0:00:21]} 37. Bxb7 {[%emt 0:00:34]} Kxb6 {[%emt 0:00:23]} 38. Be4 {[%emt 0:00:16]} Kc5 {[%emt 0:00:35]} 39. Kg2 {[%emt 0:00:16]} Rd6 {[%emt 0:01:09]} 40. e3 {[%emt 0:00:44]} Nb5 {[%emt 0:00:33]} 41. Rc2+ {[%emt 0:00:20]} Kb4 {[%emt 0:00:23]} 42. Rb2+ {[%emt 0:00:45]} Kc4 {[%emt 0:00:26]} 43. Rc2+ {[%emt 0:00:06]} Nc3 {[%emt 0:00:16]} 44. Bf5 {[%emt 0:01:04]} Kb3 {[%emt 0:00:32]} 45. Rf2 {[%emt 0:00:30]} Nd1 {[%emt 0:00:32]} 46. Bc2+ {[%emt 0:00:25]} Kc3 {[%emt 0:00:06]} 47. Bxd1 {[%emt 0:00:04]} Rxd1 {[%emt 0:00:01]} 48. Rf6 {[%emt 0:00:28]} Rd3 {[%emt 0:00:30]} 49. e4 {[%emt 0:01:01]} Kd4 {[%emt 0:00:30]} 50. Rxh6 {[%emt 0:00:22]} Kxe4 {[%emt 0:00:05]} 51. Rf6 {[%emt 0:00:36]} Rd2+ {[%emt 0:00:54]} 52. Rf2 {[%emt 0:00:14]} Rd3 {[%emt 0:00:30]} 53. h4 {[%emt 0:00:20]} Kd4 {[%emt 0:00:13]} 54. h5 {[%emt 0:00:48]} e4 {[%emt 0:00:18]} 55. h6 {[%emt 0:00:16]} Rc3 {[%emt 0:00:24]} 56. g4 {[%emt 0:00:52]} e3 {[%emt 0:00:11]} 57. Re2 {[%emt 0:00:15]} Rc7 {[%emt 0:00:27]} 58. Ra2 {[%emt 0:00:48]} Kd3 {[%emt 0:00:48]} 59. Ra3+ {[%emt 0:00:17]} Kd2 {[%emt 0:00:06]} 60. Ra8 {[%emt 0:00:44]} e2 {[%emt 0:01:22]} 61. Rd8+ {[%emt 0:00:21]} Ke1 {[%emt 0:00:14]} 62. g5 {[%emt 0:00:32]} Rf7 {[%emt 0:01:13]} 63. g6 {[%emt 0:00:25]} Rf2+ {[%emt 0:00:10]} 64. Kg1 {[%emt 0:00:37]} Rf1+ {[%emt 0:00:10]} 65. Kg2 {[%emt 0:00:04]} Rf2+ {[%emt 0:00:03]} 66. Kg1 {[%emt 0:00:36]} Rf1+ {[%emt 0:00:02]} 67. Kg2 {[%emt 0:00:00]} Rf2+ {[%emt 0:00:06]} 68. Kg3 {[%emt 0:01:21]} Kf1 {[%emt 0:00:05]} 69. Re8 {[%emt 0:00:31]} Rg2+ {[%emt 0:00:08]} 70. Kf3 {[%emt 0:00:27]} Rxg6 {[%emt 0:01:24]} 71. h7 {[%emt 0:00:10]} Rf6+ {[%emt 0:00:18]} 72. Kg4 {[%emt 0:00:54]} Rh6 {[%emt 0:00:15]} 1/2-1/2

[Event "French-ch U16-U18 2024"]
[Site "Agen"]
[Date "2024.04.15"]
[Round "2.13"]
[White "Naville, Lea"]
[Black "Deladerriere, Calypso"]
[Result "0-1"]
[ECO "D07"]
[WhiteElo "1745"]
[BlackElo "1935"]
[Annotator "NA RC"]
[PlyCount "56"]
[EventDate "2024.04.14"]
[EventType "swiss"]
[EventCountry "FRA"]
[SourceTitle "playchess.com"]
[Source "ChessBase"]
[SourceQuality "1"]
[TimeControl "5400+30"]

{[%evp 12,53,45,32767,32767,32767,32767,32767,32767,32767,32767,-58,-49,-57,-41,-65,-76,-61,-44,-49,-29,-76,-58,-72,32767,-126,-120,32767,32767,32767,0,-136,32767,-201,-179,-468,32767,-428,-516,32767,-720,-826,-621,-1838]} 1. d4 {[%emt 0:00:07]} d5 {[%emt 0:00:16]} 2. c4 {[%emt 0:00:24]} Nc6 {[%emt 0:00:29]} 3. Nc3 {[%emt 0:00:32]} Nf6 {[%emt 0:00:51]} 4. Nf3 {[%emt 0:00:36]} dxc4 {[%emt 0:00:53]} 5. e3 {[%emt 0:04:23]} Bg4 {[%emt 0:04:47]} 6. Bxc4 {[%emt 0:01:20]} e6 {[%emt 0:01:01]} 7. O-O {[%emt 0:03:08]} Be7 {[%emt 0:01:31] D07: Queen's Gambit: Chigorin Defence.} 8. Bd2 {[%emt 0:02:34]} O-O {[%emt 0:10:07]} 9. h3 {[%emt 0:09:13]} Bh5 {[%emt 0:00:44]} 10. Rc1 {[%emt 0:01:41]} e5 {[%emt 0:05:13]} 11. dxe5 {[%emt 0:05:59]} (11. g4 $11 exd4 12. exd4) 11... Nxe5 {[%emt 0:07:28]} 12. Be2 {[%emt 0:00:52]} Nxf3+ {[%emt 0:00:33]} 13. Bxf3 {[%emt 0:00:07]} Bxf3 {[%emt 0:00:07]} 14. gxf3 {[%emt 0:00:05]} Qd7 {[%emt 0:01:07]} 15. Kg2 {[%emt 0:02:37]} Rad8 {[%emt 0:00:50]} 16. Be1 {[%emt 0:02:23]} (16. Qb3 $11 {should be considered.}) 16... Qf5 {[%emt 0:04:43]} 17. Qe2 {[%emt 0:04:20]} Qg5+ {[%emt 0:01:53]} 18. Kh2 {[%emt 0:00:12]} (18. Kh1 $15) 18... Bd6+ {[%emt 0:00:45]} 19. Kh1 {[%emt 0:00:53]} Qh4 {[%emt 0:01:11]} 20. Kg2 {[%emt 0:00:37]} Qg5+ {[%emt 0:06:33]} ({Black should play} 20... Rfe8 $17 21. Rg1 a6) 21. Kh1 {[%emt 0:01:31]} Rfe8 {[%emt 0:00:07]} 22. f4 {[%emt 0:04:11] [#]} (22. Rg1 $17 Qh5 23. Kg2) 22... Bxf4 $1 {[%emt 0:09:33]} 23. exf4 $2 {[%emt 0:05:05]} (23. Qf3 Bd6 24. Rg1) 23... Qxf4 {[%emt 0:00:18]} 24. Qc2 {[%emt 0:00:19]} (24. Rd1 Rxe2 25. Rxd8+ Re8 26. Rxe8+ Nxe8 $19) 24... Qf3+ {[%emt 0:00:25]} 25. Kh2 {[%emt 0:00:08]} Rd3 {[%emt 0:00:44]} 26. Rh1 {[%emt 0:02:03]} Re5 $19 {[%emt 0:02:46]} 27. Ne2 {[%emt 0:03:19]} Rxe2 {[%emt 0:00:37]} 28. Qxc7 {[%emt 0:00:12]} Rxf2+ {[%emt 0:00:14]} 0-1

[Event "French-ch U16-U18 2024"]
[Site "Agen"]
[Date "2024.04.15"]
[Round "2.14"]
[White "Grimault, Leane"]
[Black "Dufeux, Elia"]
[Result "0-1"]
[ECO "A13"]
[WhiteElo "1930"]
[BlackElo "1728"]
[Annotator "NA RC"]
[PlyCount "98"]
[EventDate "2024.04.14"]
[EventType "swiss"]
[EventCountry "FRA"]
[SourceTitle "playchess.com"]
[Source "ChessBase"]
[SourceQuality "1"]
[TimeControl "5400+30"]

1. g3 {[%emt 0:00:06]} e6 {[%emt 0:11:49]} 2. Bg2 {[%emt 0:01:13]} d5 {[%emt 0:01:08]} 3. c4 {[%emt 0:03:38]} a6 {[%emt 0:02:29]} 4. Qc2 {[%emt 0:06:12]} c5 {[%emt 0:07:40]} 5. b3 {[%emt 0:04:01]} Nf6 {[%emt 0:03:20]} 6. Nf3 {[%emt 0:01:41]} Be7 {[%emt 0:04:26]} 7. cxd5 {[%emt 0:00:37]} exd5 {[%emt 0:03:35]} 8. d4 {[%emt 0:00:36]} (8. Ba3 $11 {is superior.}) 8... b6 {[%emt 0:07:43]} 9. O-O {[%emt 0:02:04]} Bb7 {[%emt 0:03:17]} 10. Nc3 {[%emt 0:02:43]} O-O {[%emt 0:02:23]} 11. Rd1 {[%emt 0:07:58]} Nbd7 {[%emt 0:03:11]} 12. dxc5 {[%emt 0:05:30]} bxc5 {[%emt 0:08:29]} (12... Rc8 $14) 13. Ng5 {[%emt 0:02:52]} ({White should play} 13. Nh4 $16) 13... h6 {[%emt 0:06:29]} 14. Nh3 {[%emt 0:00:36]} Nb6 {[%emt 0:03:28]} 15. a4 {[%emt 0:06:49]} Qc8 {[%emt 0:04:22]} 16. a5 {[%emt 0:03:40]} d4 {[%emt 0:04:18]} 17. Ne4 {[%emt 0:02:04]} Nbd5 {[%emt 0:08:14]} 18. Bd2 $17 {[%emt 0:10:16]} (18. Nf4 $142) 18... Rb8 {[%emt 0:03:20]} 19. Nf4 {[%emt 0:02:26]} Nxe4 {[%emt 0:03:26]} 20. Bxe4 {[%emt 0:01:34]} Nf6 {[%emt 0:00:41]} 21. Bxb7 {[%emt 0:05:09]} Qxb7 {[%emt 0:00:13]} 22. Rab1 {[%emt 0:00:10]} Ne4 {[%emt 0:02:51]} 23. Nd3 {[%emt 0:03:28]} Rfc8 {[%emt 0:01:16]} 24. Bf4 {[%emt 0:00:31]} Ra8 {[%emt 0:00:52]} 25. Re1 {[%emt 0:06:16]} Nc3 {[%emt 0:00:58]} 26. Rb2 {[%emt 0:00:43]} h5 {[%emt 0:02:20]} 27. h4 {[%emt 0:01:15]} Qc6 {[%emt 0:00:27]} 28. Ne5 {[%emt 0:01:01]} Qe6 {[%emt 0:00:55]} 29. Nc4 {[%emt 0:00:55]} Nd5 {[%emt 0:00:13]} 30. Qd2 {[%emt 0:01:51]} Bf6 {[%emt 0:00:33]} 31. Rbb1 {[%emt 0:03:26]} Ra7 {[%emt 0:00:35]} 32. Rbc1 {[%emt 0:08:00]} Nc3 {[%emt 0:00:33]} 33. e3 {[%emt 0:00:40]} Qg4 {[%emt 0:00:35]} 34. exd4 {[%emt 0:00:33]} cxd4 {[%emt 0:00:27]} 35. Qd3 {[%emt 0:02:46]} Re7 {[%emt 0:00:29]} 36. Rxe7 {[%emt 0:00:24]} Bxe7 {[%emt 0:00:01]} 37. Re1 {[%emt 0:00:24]} Bf6 {[%emt 0:00:56]} 38. Nd6 {[%emt 0:01:04]} Rd8 {[%emt 0:00:28]} 39. Qxa6 {[%emt 0:01:12]} Nd5 {[%emt 0:00:28]} 40. Bd2 {[%emt 0:01:48]} Bxh4 {[%emt 0:00:44]} 41. Qd3 {[%emt 0:01:28]} Bf6 {[%emt 0:00:28]} 42. Ne4 {[%emt 0:00:39]} Be5 {[%emt 0:00:28]} 43. b4 {[%emt 0:00:42]} h4 {[%emt 0:00:13]} 44. b5 {[%emt 0:00:57]} f5 {[%emt 0:00:26]} 45. Ng5 {[%emt 0:00:25]} Bd6 {[%emt 0:00:52]} 46. Qb3 {[%emt 0:00:35]} Bb8 {[%emt 0:00:28]} 47. Kg2 {[%emt 0:00:27]} f4 {[%emt 0:00:33]} 48. Ne4 {[%emt 0:00:10]} f3+ {[%emt 0:00:16]} 49. Qxf3 {[%emt 0:00:13]} h3+ {[%emt 0:00:02]} 0-1

[Event "French-ch U16-U18 2024"]
[Site "Agen"]
[Date "2024.04.15"]
[Round "2.15"]
[White "Kosteniuk, Kristina"]
[Black "Bouland, Yseoline"]
[Result "0-1"]
[ECO "E61"]
[WhiteElo "1852"]
[BlackElo "1718"]
[Annotator "NA RC"]
[PlyCount "80"]
[EventDate "2024.04.14"]
[EventType "swiss"]
[EventCountry "FRA"]
[SourceTitle "playchess.com"]
[Source "ChessBase"]
[SourceQuality "1"]
[TimeControl "5400+30"]

1. e4 {[%emt 0:00:02]} c6 {[%emt 0:00:15]} 2. d4 {[%emt 0:01:14]} d5 {[%emt 0:00:16]} 3. exd5 {[%emt 0:00:29]} cxd5 {[%emt 0:00:27]} 4. c4 {[%emt 0:00:29]} Nf6 {[%emt 0:00:38]} 5. Nc3 {[%emt 0:01:32]} g6 {[%emt 0:01:16]} 6. Nf3 {[%emt 0:02:16]} Bg7 {[%emt 0:00:49]} 7. Be2 {[%emt 0:08:08]} O-O {[%emt 0:00:59]} 8. h3 {[%emt 0:04:15]} dxc4 {[%emt 0:10:00]} 9. Bxc4 {[%emt 0:00:41]} e6 {[%emt 0:06:42]} 10. Bf4 {[%emt 0:05:47]} Nc6 {[%emt 0:01:26]} 11. O-O {[%emt 0:19:15]} a6 {[%emt 0:04:00]} 12. a4 {[%emt 0:12:22]} Qb6 {[%emt 0:00:26]} 13. Qd2 {[%emt 0:19:32]} Rd8 {[%emt 0:00:47]} 14. Rfd1 $11 {[%emt 0:04:02]} Ne8 {[%emt 0:05:21]} 15. Be3 {[%emt 0:08:03]} Qb4 {[%emt 0:06:37]} 16. Qe2 {[%emt 0:03:00]} Nd6 {[%emt 0:01:47]} 17. Ba2 {[%emt 0:01:34]} Nf5 {[%emt 0:02:55]} 18. d5 {[%emt 0:03:57]} exd5 {[%emt 0:01:17]} 19. Bxd5 {[%emt 0:01:48]} Bd7 {[%emt 0:05:33]} 20. Ng5 {[%emt 0:00:41]} Be8 {[%emt 0:02:44]} 21. Rac1 {[%emt 0:01:18]} Nxe3 {[%emt 0:05:41]} 22. fxe3 {[%emt 0:00:19]} Qe7 {[%emt 0:01:59]} 23. Nf3 {[%emt 0:00:38]} Bh6 {[%emt 0:00:57]} 24. Re1 {[%emt 0:00:32]} Nb4 {[%emt 0:00:58]} 25. Rcd1 {[%emt 0:00:19]} Qc5 {[%emt 0:03:36]} 26. Bb3 {[%emt 0:00:37]} Rxd1 {[%emt 0:00:47]} 27. Nxd1 {[%emt 0:00:15]} Rd8 {[%emt 0:02:06]} 28. Kh1 {[%emt 0:00:16]} Nd3 {[%emt 0:01:33]} 29. Rf1 {[%emt 0:00:07]} Nc1 {[%emt 0:04:55]} 30. Qc2 {[%emt 0:00:30]} Nxb3 {[%emt 0:00:19]} 31. Qxb3 {[%emt 0:00:07]} Qe7 {[%emt 0:02:38]} 32. Re1 {[%emt 0:01:00]} Bc6 {[%emt 0:02:16]} 33. Nd4 {[%emt 0:00:37]} Rxd4 {[%emt 0:00:57]} 34. Qc3 {[%emt 0:01:16]} Rh4 {[%emt 0:03:04]} 35. Kh2 {[%emt 0:00:21]} Bg7 {[%emt 0:01:05]} 36. Qd2 {[%emt 0:00:26]} Be5+ {[%emt 0:01:44]} 37. Kg1 {[%emt 0:00:39]} Qg5 {[%emt 0:01:03]} 38. Nc3 {[%emt 0:00:33]} Rxh3 {[%emt 0:01:38]} 39. Rd1 {[%emt 0:00:26]} Qxe3+ {[%emt 0:01:11]} 40. Qxe3 {[%emt 0:00:35]} Rxe3 {[%emt 0:00:08]} 0-1

[Event "French-ch U16-U18 2024"]
[Site "Agen"]
[Date "2024.04.15"]
[Round "2.16"]
[White "Don Ignazi, Pierre Ange"]
[Black "Makkar, Rajat"]
[Result "0-1"]
[ECO "B28"]
[WhiteElo "1900"]
[BlackElo "2452"]
[Annotator "TA"]
[PlyCount "69"]
[EventDate "2024.04.14"]
[EventType "swiss"]
[EventCountry "FRA"]
[SourceTitle "playchess.com"]
[Source "ChessBase"]
[SourceQuality "1"]
[TimeControl "5400+30"]

{[%evp 9,69,15,10,11,23,0,0,0,-7,0,0,-14,-7,-21,19,-12,0,0,-2,-39,-20,-60,-22,-60,-39,-60,-52,-65,-55,-66,-66,-98,-97,-93,-80,-164,-84,-187,-178,-270,-176,-217,-231,-387,-383,-476,-472,-485,-489,-489,-410,-418,-436,-538,-546,-812,-642,-816,-790,-995,-996,-890]} 1. e4 {[%emt 0:00:15]} c5 {[%emt 0:00:13]} 2. Nf3 {[%emt 0:00:16]} a6 {[%emt 0:00:37]} 3. g3 {[%emt 0:02:27]} Nc6 {[%emt 0:01:21]} 4. Bg2 {[%emt 0:00:58]} g6 {[%emt 0:03:03]} 5. O-O {[%emt 0:01:35]} Bg7 {[%emt 0:01:03]} 6. c3 {[%emt 0:01:32]} e5 {[%emt 0:01:44]} 7. Re1 {[%emt 0:06:56][%cal Od2d4]} Nge7 {[%emt 0:00:53]} 8. d3 {[%emt 0:01:17] The position is equal.} O-O {[%emt 0:00:43]} 9. Nbd2 {[%emt 0:02:09]} d6 {[%emt 0:05:09]} 10. Nf1 {[%emt 0:10:54]} h6 {[%emt 0:05:26]} 11. Ne3 {[%emt 0:21:45]} f5 {[%emt 0:03:21]} 12. Nd5 {[%emt 0:04:41]} Nxd5 {[%emt 0:03:41]} 13. exd5 {[%emt 0:00:08]} Ne7 {[%emt 0:00:18][%cal Oa8b8]} 14. Qb3 {[%emt 0:07:11]} g5 {[%emt 0:02:56]} 15. h3 {[%emt 0:02:35]} Kh8 {[%emt 0:04:30]} 16. Nh2 {[%emt 0:02:32]} Ng6 {[%emt 0:04:35]} 17. Qd1 {[%emt 0:04:56]} Qf6 {[%emt 0:02:44]} 18. Qe2 {[%emt 0:02:57]} Bd7 {[%emt 0:00:54]} 19. a3 {[%emt 0:07:14]} Rae8 {[%emt 0:02:46]} 20. Rb1 {[%emt 0:03:26] [#] White is now going downhill.} e4 $1 {[%emt 0:07:00]} 21. dxe4 {[%emt 0:01:32]} fxe4 {[%emt 0:01:01]} 22. Qc2 {[%emt 0:13:41] [#]} (22. Ng4 $17 Qf7 23. Qc2) 22... Qf7 {[%emt 0:11:46]} ({Black should try} 22... Ne5 $1 $19 {aiming for ...Bb5.} 23. Be3 (23. Rxe4 $2 Bf5 $19) 23... Nd3) 23. c4 {[%emt 0:00:27] [#] Prevents Bb5} (23. Be3 $17 {is a better defense.}) 23... Ne5 $1 $19 {[%emt 0:07:02][%cal Oe5c4]} 24. Be3 {[%emt 0:00:31]} (24. Rxe4 Bf5 25. Be3 b5 26. cxb5 axb5 $19 (26... Qxd5 27. Rd1 $11)) (24. Bxe4 $142 Nd3 (24... Bxh3 25. Be3 $17) 25. Be3 (25. Re2 $2 Rxe4 26. Be3 Ne5 $19) 25... Nxe1 26. Rxe1) 24... Bf5 {[%emt 0:00:33][%cal Oe5f3]} 25. g4 {[%emt 0:00:24]} Bg6 {[%emt 0:00:17]} 26. Qd1 $2 {[%emt 0:00:40]} (26. Rbd1 {was the only defense.}) 26... Nxc4 {[%emt 0:00:40]} 27. Qe2 {[%emt 0:00:30]} Ne5 {[%emt 0:00:18]} ({Don't take} 27... Qxd5 28. Rbd1 Qe6 29. b4 $19) (27... b5 28. a4 $19) 28. Qd2 {[%emt 0:00:22]} Nd3 {[%emt 0:01:06][%cal Of7d5]} 29. Rf1 {[%emt 0:00:26]} Nf4 {[%emt 0:00:13]} ({Don't play} 29... b5 30. Rfd1) 30. Rfd1 {[%emt 0:00:30]} Be5 {[%emt 0:00:31]} ({Much less strong is} 30... b5 31. Qa5 $19) 31. b4 {[%emt 0:00:21] Black is clearly winning.} c4 {[%emt 0:00:44]} 32. Kh1 {[%emt 0:00:50]} b5 {[%emt 0:00:41]} 33. Bd4 {[%emt 0:00:27]} Nd3 {[%emt 0:00:19]} 34. Bxe5+ {[%emt 0:00:06]} Rxe5 {[%emt 0:00:07]} 35. Qe3 {[%emt 0:00:58] Weighted Error Value: White=0.64/Black=0.23 (precise) .  Mistake:       	White=4     	Black=1      Inaccurate:     	White=6     	Black=3      OK:         	White=4     	Black=11     Strong:       	---       	Black=1} 0-1